fUSD/lending_fUSD_20240122
["ID","MTS","AMOUNT","RATE_DAILY","PERIOD"]
[312497209,1705932647400,-17962.81216606,0.00045,20]
[312497210,1705932647414,-378.41523539,0.00045,20]
[312497211,1705932647439,-8821.60242334,0.00045,20]
[312497212,1705932647454,-5387.90658026,0.00045,20]
[312497213,1705932647469,-16892.20380112,0.00045,20]
[312497214,1705932647484,-28403.77052574,0.00045,20]
[312497215,1705932647499,-1363.58210176,0.00045,20]
[312497216,1705932647513,-641.1100006,0.00045,20]
[312497217,1705932647530,-6188.14387636,0.00045,20]
[312497218,1705932647548,-467.43016111,0.00045,20]
[312497219,1705932647562,-9875.4812982,0.00045,20]
[312497220,1705932647578,-17763.05520326,0.00045,20]
[312497221,1705932647590,-433.35451035,0.00045,20]
[312497235,1705933106096,1000.0,0.00031,120]
[312497237,1705933167858,2000.0,0.00031,120]
[312497244,1705933746112,-1000.0,0.00024999,2]
[312497245,1705933746133,-350.0,0.00025,3]
[312497246,1705933746156,-158.59,0.00027397,2]
[312497247,1705933746177,-197.05351171,0.00029899,2]
[312497248,1705933746198,-150.0,0.00029998,2]
[312497249,1705933746220,-20599.02624128,0.00029998,2]
[312497250,1705933750086,-1262.67886294,0.00029998,2]
[312497251,1705933750108,-4117.11213002,0.00029999,2]
[312497252,1705933750129,-194.9001721,0.0003,4]
[312497253,1705933750147,-112.94683494,0.0003,4]
[312497256,1705933774121,-60.12262589,0.0003,4]
[312497257,1705933774142,-2924.55737411,0.0003,2]
[312497339,1705933832871,-177.69,0.00027397,2]
[312497340,1705933832880,-341.35244515,0.0003,2]
[312497341,1705933832912,-1042.36206145,0.0003,2]
[312497342,1705933832923,-5691.7281183,0.0003,2]
[312497343,1705933832932,-155.0,0.00030842,4]
[312497344,1705933832943,-155.0,0.00030843,2]
[312497345,1705933832952,-150.0,0.00030843,2]
[312497346,1705933832961,-237.35360816,0.00030844,2]
[312497347,1705933832976,-1453.23766428,0.00030844,2]
[312497348,1705933832988,-629.86,0.00030844,2]
[312497350,1705933832999,-705.09836731,0.00030844,2]
[312497352,1705933833010,-422.48663601,0.00030844,2]
[312497354,1705933833025,-328.64192235,0.00030844,2]
[312497355,1705933833060,-52.35180189,0.00030844,2]
[312497356,1705933833069,-202.07360428,0.00030845,2]
[312497357,1705933833078,-2650.02266968,0.00032,4]
[312497358,1705933833089,-1419.47488724,0.00032,4]
[312497359,1705933833100,-2544.41892805,0.00032,4]
[312497360,1705933833112,-456.25811503,0.00032,4]
[312497361,1705933833124,-658.46,0.00032,4]
[312497362,1705933833136,-624.13,0.00032,4]
[312497365,1705933833164,-89956.88391546,0.00032,4]
[312497366,1705933833173,-300.82429834,0.00032,4]
[312497368,1705933833182,-275.81371369,0.00033251,4]
[312497369,1705933833192,-11171.10468059,0.00033737,2]
[312497370,1705933833201,-1885.14172653,0.00033747,10]
[312497371,1705933833211,-499.99,0.00033747,2]
[312497372,1705933833220,-157.21552013,0.00033749,4]
[312497373,1705933833230,-2321.47,0.00033749,2]
[312497374,1705933833239,-1512.58797942,0.00034,35]
[312497375,1705933833248,-506.61948755,0.00034,4]
[312497376,1705933833257,-1000.0,0.00034246,4]
[312497377,1705933833268,-158.59,0.00034247,2]
[312497378,1705933833277,-177.69,0.00034247,2]
[312497379,1705933833287,-1000.0,0.00034953,2]
[312497380,1705933833299,-207.47,0.00035274,2]
[312497381,1705933833309,-163.87627281,0.00036,14]
[312497382,1705933833318,-1019.0,0.00036,6]
[312497383,1705933833327,-3334.0294644,0.00036,4]
[312497384,1705933833337,-316.04199717,0.00036,4]
[312497385,1705933833346,-2895.0,0.00036,3]
[312497386,1705933833355,-13952.0,0.00036,3]
[312497387,1705933833365,-15035.94865896,0.00036653,6]
[312497388,1705933833374,-840.49277627,0.00036653,6]
[312497389,1705933833390,-1252.77214322,0.00036653,6]
[312497390,1705933833399,-1158.4028141,0.00036653,6]
[312497391,1705933833410,-165.06353473,0.00036653,6]
[312497392,1705933833419,-250.0,0.00036687,111]
[312497393,1705933833428,-237.28,0.00036841,2]
[312497394,1705933833438,-164.2189,0.00036935,2]
[312497395,1705933833448,-611.43,0.00036947,4]
[312497396,1705933833459,-250.0,0.00036964,2]
[312497397,1705933833468,-430.0,0.00037021,2]
[312497398,1705933833478,-151.29,0.00037034,120]
[312497399,1705933833488,-655.52,0.00037138,2]
[312497400,1705933833499,-2500.0,0.00037157,3]
[312497401,1705933833509,-571.88,0.00037169,2]
[312497402,1705933833519,-250.0,0.0003719,2]
[312497403,1705933833529,-2000.0,0.00037278,2]
[312497404,1705933833542,-164.68,0.00037421,2]
[312497405,1705933833552,-166.05,0.00037482,2]
[312497406,1705933833561,-207.47,0.00037538,2]
[312497407,1705933833570,-273.45,0.0003763,2]
[312497408,1705933833580,-226.11786442,0.00037654,4]
[312497409,1705933833589,-500.0,0.00037799,2]
[312497411,1705933833599,-1000.0,0.00038,4]
[312497412,1705933833608,-164.68,0.00038071,2]
[312497413,1705933833618,-430.0,0.00038391,2]
[312497414,1705933833628,-10722.63554743,0.00038659,17]
[312497415,1705933833637,-892.75511544,0.00038677,12]
[312497416,1705933833647,-259.73081511,0.000387,4]
[312497417,1705933833656,-1000.0,0.00038713,4]
[312497418,1705933833665,-12218.48688052,0.00038714,17]
[312497419,1705933833674,-164.68,0.00038721,2]
[312497420,1705933833684,-185.2,0.00039099,2]
[312497421,1705933833693,-164.68,0.00039371,2]
[312497422,1705933833702,-492.56957291,0.000395,4]
[312497423,1705933833712,-156.09058007,0.00039596,4]
[312497424,1705933833722,-430.0,0.00039761,2]
[312497425,1705933833733,-207.47,0.00039802,2]
[312497426,1705933833742,-907.00406124,0.00039816,30]
[312497428,1705933833751,-255.0,0.0004,12]
[312497429,1705933833761,-255.0,0.0004,12]
[312497430,1705933833770,-1000.0,0.00040213,30]
[312497431,1705933833780,-1000.0,0.00040424,30]
[312497432,1705933833789,-150.0,0.00040488,7]
[312497433,1705933833800,-150.00000001,0.00040488,7]
[312497434,1705933833809,-150.0,0.00040488,7]
[312497435,1705933833819,-150.0,0.00040488,7]
[312497436,1705933833828,-150.0,0.00040488,7]
[312497437,1705933833838,-150.0,0.00040488,7]
[312497438,1705933833847,-150.0,0.00040488,7]
[312497439,1705933833857,-150.0,0.00040488,7]
[312497440,1705933833867,-150.0,0.00040488,7]
[312497441,1705933833877,-150.00000001,0.00040488,7]
[312497442,1705933833886,-150.0,0.00040488,7]
[312497443,1705933833897,-150.0,0.00040488,7]
[312497444,1705933833906,-154.3,0.0004065,2]
[312497445,1705933833917,-150.0,0.0004068,30]
[312497446,1705933833927,-1000.0,0.00040849,30]
[312497447,1705933833936,-3330.5550022,0.00040987,4]
[312497448,1705933833945,-430.0,0.00041131,2]
[312497449,1705933833954,-150.0,0.00041237,30]
[312497450,1705933833965,-183.69273058,0.00041522,4]
[312497451,1705933833974,-800.0,0.00041643,15]
[312497452,1705933833984,-571.88,0.00041815,2]
[312497453,1705933833996,-15897.91758741,0.000419,15]
[312497454,1705933834006,-150.0,0.00041987,30]
[312497455,1705933834015,-1853.65317375,0.00041999,15]
[312497456,1705933834026,-100000.0,0.00042,32]
[312497457,1705933834035,-207.47,0.00042066,2]
[312497458,1705933834046,-500.0,0.00042147,4]
[312497459,1705933834055,-500.0,0.00042156,4]
[312497460,1705933834065,-500.0,0.00042165,4]
[312497461,1705933834074,-500.0,0.00042173,4]
[312497462,1705933834083,-500.0,0.00042182,4]
[312497463,1705933834093,-500.0,0.00042191,4]
[312497464,1705933834102,-430.0,0.00042501,2]
[312497465,1705933834111,-800.0,0.00042642,15]
[312497466,1705933834121,-150.0,0.00042737,30]
[312497467,1705933834131,-157.18725343,0.00042748,4]
[312497468,1705933834141,-823.23574095,0.000429,11]
[312497469,1705933834151,-1000.0,0.00042902,15]
[312497470,1705933834160,-1000.0,0.00042989,2]
[312497471,1705933834170,-100000.0,0.00043,33]
[312497472,1705933834180,-221.54665037,0.00043,16]
[312497473,1705933834190,-352.72,0.00043,2]
[312497474,1705933834200,-500.0,0.00043,2]
[312497475,1705933834210,-271.65456604,0.00043,60]
[312497476,1705933834227,-155.0,0.00043,2]
[312497477,1705933834240,-206.0,0.00043,10]
[312497478,1705933834249,-258.33493005,0.00043,2]
[312497479,1705933834259,-1000.0,0.00043,7]
[312497480,1705933834269,-150.0,0.00043,2]
[312497481,1705933834279,-172.0,0.00043,90]
[312497482,1705933834289,-4981.74296947,0.00043109,2]
[312497483,1705933834300,-150.0,0.00043487,30]
[312497484,1705933834310,-191.59750761,0.00043541,2]
[312497485,1705933834320,-800.0,0.00043641,15]
[312497486,1705933834330,-666.0,0.0004365,4]
[312497487,1705933834339,-5539.4358,0.00043878,120]
[312497488,1705933834349,-537.63904529,0.00043879,5]
[312497489,1705933834358,-216.5471248,0.00043887,16]
[312497490,1705933834368,-5000.0,0.00043888,3]
[312497491,1705933834378,-153.25734244,0.00043888,21]
[312497492,1705933834388,-420.41973468,0.00043898,2]
[312497493,1705933834397,-208.50880466,0.000439,2]
[312497494,1705933834407,-1078.74056212,0.000439,2]
[312497495,1705933834419,-219813.07605304,0.00043978,10]
[312497496,1705933834434,-1374.0,0.00043978,10]
[312497497,1705933834445,-18690.76,0.00043978,10]
[312497498,1705933834458,-370.098,0.00043978,10]
[312497499,1705933834478,-313.12930109,0.00043978,10]
[312497502,1705933838289,-456.35152185,0.00043978,10]
[312497503,1705933838305,-62970.56025202,0.00043978,10]
[312497504,1705933838315,-1479.0,0.00043987,7]
[312497505,1705933838326,-4776.23548554,0.00043987,7]
[312497506,1705933838335,-565087.88821402,0.00043988,2]
[312497507,1705933838345,-151.0,0.00043988,14]
[312497508,1705933838354,-160.70645,0.00043988,14]
[312497509,1705933838363,-160.70645,0.00043988,14]
[312497510,1705933838373,-199.331859,0.00043988,14]
[312497511,1705933838382,-151.0,0.00043988,14]
[312497512,1705933838392,-257.00498,0.00043988,14]
[312497513,1705933838401,-257.00498,0.00043988,14]
[312497514,1705933838411,-151.0,0.00043988,14]
[312497515,1705933838420,-151.0,0.00043988,14]
[312497516,1705933838430,-303987.975128,0.00043989,10]
[312497517,1705933838439,-25708.36918087,0.00043997,4]
[312497518,1705933838449,-9002.253702,0.00043998,4]
[312497519,1705933838458,-151.0,0.00043998,14]
[312497520,1705933838467,-151.0,0.00043998,14]
[312497521,1705933838476,-151.0,0.00043998,14]
[312497522,1705933838485,-151.0,0.00043998,14]
[312497523,1705933838496,-311.01077544,0.00043998,4]
[312497524,1705933838505,-155.0,0.00043998,4]
[312497525,1705933838514,-160.1357463,0.00043998,4]
[312497526,1705933838524,-501.78374983,0.00043998,2]
[312497527,1705933838533,-151.0,0.00043999,14]
[312497528,1705933838545,-151.0,0.00043999,14]
[312497529,1705933838554,-151.0,0.00043999,14]
[312497530,1705933838564,-151.0,0.00043999,14]
[312497531,1705933838573,-151.0,0.00043999,14]
[312497532,1705933838583,-151.0,0.00043999,14]
[312497534,1705933838593,-151.0,0.00043999,14]
[312497536,1705933838602,-151.0,0.00043999,14]
[312497538,1705933838611,-151.0,0.00043999,14]
[312497540,1705933838621,-151.0,0.00043999,14]
[312497541,1705933838631,-151.0,0.00043999,14]
[312497542,1705933838640,-151.0,0.00043999,14]
[312497543,1705933838649,-151.0,0.00043999,14]
[312497544,1705933838659,-151.0,0.00043999,14]
[312497546,1705933838668,-238.980843,0.00043999,14]
[312497548,1705933838678,-151.0,0.00043999,14]
[312497549,1705933838687,-151.0,0.00043999,14]
[312497553,1705933838707,-151.0,0.00043999,14]
[312497555,1705933838717,-151.0,0.00043999,14]
[312497556,1705933838726,-160.70645,0.00043999,14]
[312497558,1705933838736,-160.70645,0.00043999,14]
[312497560,1705933838747,-151.0,0.00043999,14]
[312497562,1705933838756,-257.00498,0.00043999,14]
[312497564,1705933838766,-257.00498,0.00043999,14]
[312497567,1705933838775,-151.0,0.00043999,14]
[312497569,1705933838785,-212.165186,0.00043999,14]
[312497571,1705933838799,-151.0,0.00043999,14]
[312497573,1705933838808,-151.0,0.00043999,14]
[312497575,1705933838818,-190.213831,0.00043999,14]
[312497577,1705933838829,-151.0,0.00043999,14]
[312497579,1705933838840,-500000.0,0.00043999,14]
[312497581,1705933838849,-100000.0,0.00044,34]
[312497583,1705933838859,-330000.0,0.00044,18]
[312497585,1705933838869,-1727.5691,0.00044,2]
[312497587,1705933838879,-2000.0,0.00044,2]
[312497589,1705933838889,-257.00498,0.00044,14]
[312497591,1705933838900,-257.00498,0.00044,14]
[312497593,1705933838910,-151.0,0.00044,14]
[312497595,1705933838920,-151.0,0.00044,14]
[312497597,1705933838931,-151.0,0.00044,14]
[312497599,1705933838941,-151.0,0.00044,14]
[312497601,1705933838951,-360.0,0.00044148,12]
[312497603,1705933838961,-360.0,0.00044148,12]
[312497605,1705933838970,-360.0,0.00044148,12]
[312497607,1705933838980,-360.0,0.00044148,12]
[312497609,1705933838990,-150.0,0.00044237,30]
[312497611,1705933838999,-207.47,0.0004433,2]
[312497613,1705933839009,-155.0,0.0004437,2]
[312497615,1705933839019,-1744.0,0.000444,7]
[312497617,1705933839029,-206.0,0.00044417,10]
[312497619,1705933839038,-302.06646048,0.00044451,30]
[312497621,1705933839053,-840.31688547,0.00044548,4]
[312497623,1705933839063,-178.22086,0.0004455,23]
[312497625,1705933839072,-823.23574091,0.00044624,11]
[312497627,1705933839082,-800.0,0.00044639,20]
[312497629,1705933839092,-477.41970279,0.0004475,30]
[312497631,1705933839101,-2314.4807,0.000449,2]
[312497633,1705933839111,-13680.0634,0.000449,2]
[312497635,1705933839120,-1000.0,0.00044934,30]
[312497637,1705933839130,-190.30330395,0.00044986,30]
[312497638,1705933839139,-1000.0,0.00044989,30]
[312497639,1705933839149,-1000.0,0.00044989,30]
[312497640,1705933839158,-1000.0,0.00044989,30]
[312497641,1705933839168,-1000.0,0.00044989,30]
[312497642,1705933839177,-1000.0,0.00044989,30]
[312497643,1705933839187,-1000.0,0.00044989,30]
[312497644,1705933839197,-1000.0,0.00044989,30]
[312497645,1705933839206,-1000.0,0.00044989,30]
[312497646,1705933839216,-1044.67956194,0.00044989,30]
[312497647,1705933839225,-151.0,0.0004499,14]
[312497648,1705933839235,-151.0,0.0004499,14]
[312497649,1705933839244,-151.0,0.0004499,14]
[312497650,1705933839253,-151.0,0.0004499,14]
[312497652,1705933839263,-151.0,0.0004499,14]
[312497654,1705933839273,-151.0,0.0004499,14]
[312497656,1705933839283,-151.0,0.0004499,14]
[312497658,1705933839294,-151.0,0.0004499,14]
[312497660,1705933839304,-151.0,0.0004499,14]
[312497662,1705933839314,-164.522886,0.00044997,14]
[312497664,1705933839323,-151.0,0.00044997,14]
[312497666,1705933839333,-151.0,0.00044997,14]
[312497668,1705933839342,-151.0,0.00044997,14]
[312497670,1705933839352,-160.70645,0.00044997,14]
[312497672,1705933839361,-160.70645,0.00044997,14]
[312497674,1705933839372,-151.0,0.00044997,14]
[312497676,1705933839381,-2579.00788255,0.00044997,4]
[312497678,1705933839390,-164.25194735,0.00044997,4]
[312497680,1705933839399,-72834.74040093,0.00044997,4]
[312497682,1705933839410,-2061.58406454,0.00044998,4]
[312497684,1705933839419,-220.51136302,0.00044998,4]
[312497686,1705933839428,-6441.03694263,0.00044998,4]
[312497688,1705933839438,-813.21033884,0.00044998,4]
[312497690,1705933839447,-155.52985391,0.00044998,4]
[312497692,1705933839457,-763.42785941,0.00044998,4]
[312497694,1705933839467,-8858.8625671,0.00044998,4]
[312497696,1705933839476,-159044.65977491,0.00044998,4]
[312497698,1705933839486,-479.05066689,0.00044998,4]
[312497700,1705933839495,-6922.51616197,0.00044998,4]
[312497702,1705933839504,-26773.6803376,0.00044998,4]
[312497704,1705933839514,-156.25543473,0.00044998,4]
[312497706,1705933839524,-155.88211887,0.00044998,4]
[312497708,1705933839534,-909.00878469,0.00044998,4]
[312497710,1705933839544,-447.27378391,0.00044998,4]
[312497712,1705933839554,-19076.99005387,0.00044998,4]
[312497714,1705933839564,-362.5663468,0.00044998,4]
[312497716,1705933839576,-155.0,0.00044998,4]
[312497718,1705933839586,-13120.25360426,0.00044998,4]
[312497720,1705933839596,-240.41101424,0.00044998,4]
[312497722,1705933839607,-1000.0,0.00044998,30]
[312497724,1705933839617,-151.0,0.00044998,14]
[312497727,1705933839628,-159.122804,0.00044998,14]
[312497729,1705933839639,-151.0,0.00044998,14]
[312497731,1705933839650,-151.0,0.00044998,14]
[312497733,1705933839660,-151.0,0.00044998,14]
[312497735,1705933839670,-257.00498,0.00044998,14]
[312497737,1705933839682,-257.00498,0.00044998,14]
[312497739,1705933839693,-151.0,0.00044998,14]
[312497741,1705933839703,-151.0,0.00044998,14]
[312497743,1705933839714,-151.0,0.00044998,14]
[312497745,1705933839724,-151.0,0.00044998,14]
[312497747,1705933839735,-3861.05352381,0.00044999,4]
[312497749,1705933839745,-197.63805697,0.00044999,2]
[312497751,1705933839756,-3298.79475817,0.00044999,2]
[312497753,1705933839765,-100000.0,0.00045,35]
[312497755,1705933839776,-151.0,0.00045,14]
[312497757,1705933839786,-225.145719,0.00045,14]
[312497759,1705933839802,-291.449039,0.00045,14]
[312497761,1705933839812,-151.0,0.00045,14]
[312497763,1705933839822,-151.0,0.00045,14]
[312497765,1705933839835,-222.966774,0.00045,14]
[312497767,1705933839845,-151.0,0.00045,14]
[312497769,1705933839855,-151.0,0.00045,14]
[312497771,1705933839866,-237.601578,0.00045,14]
[312497773,1705933839876,-159.2833856,0.00045,14]
[312497775,1705933839886,-151.0,0.00045,14]
[312497777,1705933839898,-151.0,0.00045,14]
[312497779,1705933839909,-160.70645,0.00045,14]
[312497781,1705933839919,-160.70645,0.00045,14]
[312497783,1705933839929,-151.0,0.00045,14]
[312497785,1705933839940,-135421.13211645,0.00045,20]
[312497787,1705933839949,-2006.0,0.00045,2]
[312497789,1705933839959,-400.3765365,0.00045,120]
[312497791,1705933839968,-950.04014599,0.00045,30]
[312497793,1705933839979,-300.0,0.00045,18]
[312497795,1705933839988,-1289.49372256,0.00045,5]
[312497798,1705933839998,-2223.03677783,0.00045,2]
[312497799,1705933840007,-151.0,0.00045,14]
[312497801,1705933840017,-151.0,0.00045,14]
[312497803,1705933840026,-151.0,0.00045,14]
[312497806,1705933840036,-1694.461952,0.00045,17]
[312497808,1705933840051,-151.0,0.00045,14]
[312497810,1705933840060,-151.0,0.00045,14]
[312497812,1705933840069,-151.0,0.00045,14]
[312497814,1705933840078,-151.0,0.00045,14]
[312497816,1705933840088,-221.917801,0.00045,14]
[312497818,1705933840097,-151.0,0.00045,14]
[312497820,1705933840106,-500.0,0.00045,14]
[312497822,1705933840116,-550.38438041,0.00045,14]
[312497824,1705933840125,-150.0,0.00045,16]
[312497826,1705933840134,-222.09741979,0.00045538,4]
[312497828,1705933840144,-150.0,0.00045589,10]
[312497830,1705933840154,-206.0,0.00045833,11]
[312497832,1705933840163,-120000.0,0.0004588,10]
[312497834,1705933840173,-257.00498,0.0004588,14]
[312497836,1705933840182,-257.00498,0.0004588,14]
[312497838,1705933840191,-151.0,0.0004588,14]
[312497840,1705933840201,-151.0,0.0004588,14]
[312497842,1705933840210,-151.0,0.0004588,14]
[312497844,1705933840220,-156.389485,0.0004588,14]
[312497846,1705933840229,-55555.0,0.000459,5]
[312497848,1705933840239,-2914.76488002,0.000459,21]
[312497850,1705933840248,-150.0,0.00045999,5]
[312497852,1705933840257,-150.0,0.00045999,5]
[312497854,1705933840266,-100000.0,0.00046,36]
[312497856,1705933840276,-151.0,0.00046,14]
[312497858,1705933840285,-151.0,0.00046,14]
[312497860,1705933840299,-160.70645,0.00046,14]
[312497862,1705933840308,-160.70645,0.00046,14]
[312497864,1705933840318,-151.0,0.00046,14]
[312497866,1705933840329,-250000.0,0.00046,20]
[312497868,1705933840338,-151.0,0.00046,14]
[312497870,1705933840347,-207.282796,0.00046,14]
[312497872,1705933840357,-151.0,0.00046,14]
[312497874,1705933840367,-151.0,0.00046,14]
[312497876,1705933840376,-151.0,0.00046,14]
[312497878,1705933840387,-151.0,0.00046,14]
[312497880,1705933840396,-151.0,0.00046,14]
[312497882,1705933840406,-151.0,0.00046,14]
[312497884,1705933840415,-257.00498,0.00046,14]
[312497886,1705933840425,-257.00498,0.00046,14]
[312497888,1705933840434,-151.0,0.00046,14]
[312497891,1705933840443,-150.0,0.00046,17]
[312497892,1705933840453,-151.0,0.00046,14]
[312497895,1705933840463,-151.0,0.00046,14]
[312497897,1705933840472,-2787.88211207,0.00046027,30]
[312497898,1705933840481,-267.01604885,0.00046027,30]
[312497900,1705933840491,-257.42284757,0.00046027,30]
[312497902,1705933840500,-2343.74213514,0.00046027,30]
[312497904,1705933840509,-2407.10692115,0.00046027,30]
[312497906,1705933840518,-1503.5948659,0.00046027,30]
[312497908,1705933840528,-209.32649195,0.00046027,30]
[312497910,1705933840537,-961.55847806,0.00046027,30]
[312497913,1705933840551,-1286.15651374,0.00046027,30]
[312497914,1705933840560,-823.23574091,0.00046348,12]
[312497917,1705933840570,-571.88,0.00046461,2]
[312497921,1705933840579,-1899.035147,0.00046548,120]
[312497924,1705933840589,-781.49,0.00046575,30]
[312497926,1705933840598,-207.47,0.00046594,2]
[312497928,1705933840607,-2914.76487992,0.00046749,22]
[312497931,1705933840617,-100000.0,0.00047,37]
[312497933,1705933840626,-151.0,0.00047,14]
[312497935,1705933840636,-151.0,0.00047,14]
[312497937,1705933840645,-160.70645,0.00047,14]
[312497939,1705933840655,-160.70645,0.00047,14]
[312497941,1705933840664,-151.0,0.00047,14]
[312497942,1705933840673,-166.42213739,0.00047,4]
[312497944,1705933840683,-250000.0,0.00047,35]
[312497946,1705933840692,-300.0,0.00047,20]
[312497948,1705933840702,-581.86,0.00047,7]
[312497951,1705933840712,-151.0,0.00047,14]
[312497953,1705933840722,-151.0,0.00047,14]
[312497955,1705933840732,-151.0,0.00047,14]
[312497957,1705933840742,-151.0,0.00047,14]
[312497959,1705933840752,-151.0,0.00047,14]
[312497961,1705933840761,-449.66992967,0.00047,4]
[312497963,1705933840771,-500.0,0.00047,4]
[312497965,1705933840780,-500.0,0.00047,4]
[312497967,1705933840790,-500.0,0.00047,4]
[312497969,1705933840802,-500.0,0.00047,4]
[312497971,1705933840812,-500.0,0.00047,7]
[312497973,1705933840821,-500.0,0.00047,7]
[312497975,1705933840830,-527.74919938,0.00047,120]
[312497977,1705933840839,-500.0,0.00047,4]
[312497979,1705933840848,-500.0,0.00047,4]
[312497981,1705933840857,-192.71568414,0.00047,7]
[312497983,1705933840866,-500.0,0.00047,4]
[312497985,1705933840875,-610.99679752,0.00047,4]
[312497987,1705933840884,-500.0,0.00047,4]
[312497989,1705933840895,-551.22842483,0.00047,7]
[312497991,1705933840904,-500.0,0.00047,30]
[312497992,1705933840914,-500.0,0.00047,4]
[312497994,1705933840925,-500.0,0.00047,4]
[312497996,1705933840934,-500.0,0.00047,4]
[312497998,1705933840945,-286.14023319,0.00047,4]
[312498001,1705933840954,-500.0,0.00047,4]
[312498002,1705933840963,-500.0,0.00047,4]
[312498004,1705933840972,-500.0,0.00047,7]
[312498006,1705933840982,-500.0,0.00047,4]
[312498009,1705933840992,-517.07614161,0.00047,120]
[312498011,1705933841003,-500.0,0.00047,4]
[312498013,1705933841013,-500.0,0.00047,4]
[312498015,1705933841022,-500.0,0.00047,7]
[312498017,1705933841032,-500.0,0.00047,7]
[312498019,1705933841041,-500.0,0.00047,4]
[312498021,1705933841053,-583.24759814,0.00047,7]
[312498023,1705933841062,-534.15228322,0.00047,30]
[312498025,1705933841071,-500.0,0.00047,4]
[312498027,1705933841080,-500.0,0.00047,7]
[312498029,1705933841090,-464.60517489,0.00047,7]
[312498031,1705933841099,-500.0,0.00047,7]
[312498033,1705933841109,-500.0,0.00047,30]
[312498035,1705933841118,-555.49839876,0.00047,30]
[312498037,1705933841127,-500.0,0.00047,4]
[312498039,1705933841136,-568.30456644,0.00047,4]
[312498041,1705933841145,-500.0,0.00047,4]
[312498043,1705933841154,-643.0701166,0.00047,30]
[312498045,1705933841163,-500.0,0.00047,7]
[312498047,1705933841172,-500.0,0.00047,4]
[312498049,1705933841181,-500.0,0.00047,7]
[312498051,1705933841190,-500.0,0.00047,4]
[312498052,1705933841200,-500.0,0.00047,7]
[312498055,1705933841209,-500.0,0.00047,30]
[312498056,1705933841219,-500.0,0.00047,30]
[312498058,1705933841229,-500.0,0.00047,7]
[312498061,1705933841238,-500.0,0.00047,4]
[312498062,1705933841247,-500.0,0.00047,30]
[312498064,1705933841256,-500.0,0.00047,4]
[312498066,1705933841265,-500.0,0.00047,4]
[312498068,1705933841274,-500.0,0.00047,30]
[312498070,1705933841283,-500.0,0.00047,7]
[312498072,1705933841295,-163.84714703,0.00047,7]
[312498075,1705933841306,-500.0,0.00047,120]
[312498077,1705933841316,-500.0,0.00047,7]
[312498079,1705933841325,-500.0,0.00047,7]
[312498081,1705933841335,-500.0,0.00047,120]
[312498083,1705933841344,-500.0,0.00047,4]
[312498085,1705933841354,-500.0,0.00047,7]
[312498087,1705933841363,-218.4628627,0.00047,4]
[312498089,1705933841374,-500.0,0.00047,4]
[312498091,1705933841383,-609.23143135,0.00047,30]
[312498093,1705933841392,-500.0,0.00047,30]
[312498095,1705933841402,-500.0,0.00047,120]
[312498097,1705933841411,-500.0,0.00047,120]
[312498099,1705933841421,-500.0,0.00047,30]
[312498101,1705933841430,-500.0,0.00047,7]